[Event "Live Chess"]
[Site "Chess.com"]
[Date "2023.05.20"]
[Round "-"]
[White "JohanKjeldahl"]
[Black "AdamOwls"]
[Result "1/2-1/2"]
[WhiteElo "1787"]
[BlackElo "1940"]
[TimeControl "300"]
[EndTime "11:29:49 PDT"]
[Termination "Game drawn by repetition"]

1. c4 {[%clk 0:04:57.7]} 1... c6 {[%clk 0:04:58.4]} 2. e4 {[%clk 0:04:55.8]}
2... d5 {[%clk 0:04:56.4]} 3. exd5 {[%clk 0:04:54.9]} 3... cxd5 {[%clk
0:04:55.9]} 4. cxd5 {[%clk 0:04:54.5]} 4... Nf6 {[%clk 0:04:55.1]} 5. Nc3 {[%clk
0:04:53.8]} 5... Nxd5 {[%clk 0:04:51.4]} 6. Bc4 {[%clk 0:04:53.2]} 6... Nxc3
{[%clk 0:04:47.3]} 7. bxc3 {[%clk 0:04:51.2]} 7... Nc6 {[%clk 0:04:45.2]} 8. d4
{[%clk 0:04:50.2]} 8... Bf5 {[%clk 0:04:43.4]} 9. Nf3 {[%clk 0:04:48.2]} 9... e6
{[%clk 0:04:42.3]} 10. O-O {[%clk 0:04:46.9]} 10... Be7 {[%clk 0:04:41.2]} 11.
Bf4 {[%clk 0:04:43]} 11... O-O {[%clk 0:04:39.6]} 12. Bd3 {[%clk 0:04:36]} 12...
Bxd3 {[%clk 0:04:36.3]} 13. Qxd3 {[%clk 0:04:35.1]} 13... Rc8 {[%clk 0:04:30.2]}
14. Rab1 {[%clk 0:04:33.9]} 14... b6 {[%clk 0:04:25.1]} 15. Rfd1 {[%clk
0:04:30]} 15... Bf6 {[%clk 0:04:17.4]} 16. Qe2 {[%clk 0:04:18.9]} 16... Re8
{[%clk 0:04:09.4]} 17. Rb5 {[%clk 0:04:03.2]} 17... Ne7 {[%clk 0:03:58.4]} 18.
Bd2 {[%clk 0:03:56.2]} 18... Nd5 {[%clk 0:03:54.6]} 19. c4 {[%clk 0:03:47.2]}
19... Nc7 {[%clk 0:03:42.8]} 20. Rb4 {[%clk 0:03:42.8]} 20... Qe7 {[%clk
0:03:36.6]} 21. Ne5 {[%clk 0:03:31.7]} 21... Bxe5 {[%clk 0:03:19.5]} 22. Qxe5
{[%clk 0:03:29.7]} 22... Red8 {[%clk 0:03:18]} 23. Rb3 {[%clk 0:03:23.1]} 23...
Ne8 {[%clk 0:03:14.8]} 24. Bb4 {[%clk 0:03:02.9]} 24... Qf6 {[%clk 0:03:11.5]}
25. Qxf6 {[%clk 0:02:58.2]} 25... Nxf6 {[%clk 0:03:11.4]} 26. Be7 {[%clk
0:02:53.5]} 26... Rd7 {[%clk 0:02:59.1]} 27. Bxf6 {[%clk 0:02:51.9]} 27... gxf6
{[%clk 0:02:59]} 28. Rc3 {[%clk 0:02:44]} 28... Rdc7 {[%clk 0:02:46.3]} 29. Rdc1
{[%clk 0:02:31.4]} 29... Kf8 {[%clk 0:02:45.1]} 30. Kf1 {[%clk 0:02:29.6]} 30...
Ke7 {[%clk 0:02:43.4]} 31. Ke2 {[%clk 0:02:28.8]} 31... Kd6 {[%clk 0:02:40.7]}
32. Kd3 {[%clk 0:02:25.5]} 32... Rg8 {[%clk 0:02:17.7]} 33. g3 {[%clk
0:02:24.1]} 33... Rg5 {[%clk 0:02:14]} 34. h4 {[%clk 0:02:21.2]} 34... Ra5
{[%clk 0:02:08.6]} 35. a3 {[%clk 0:02:19.1]} 35... Rf5 {[%clk 0:02:04.8]} 36.
R1c2 {[%clk 0:02:17]} 36... Rf3+ {[%clk 0:02:03.1]} 37. Ke2 {[%clk 0:02:15.1]}
37... Rxc3 {[%clk 0:01:59.1]} 38. Rxc3 {[%clk 0:02:14.1]} 38... Rc8 {[%clk
0:01:36.5]} 39. Ke3 {[%clk 0:02:10.3]} 39... Rg8 {[%clk 0:01:29.6]} 40. c5+
{[%clk 0:02:07.2]} 40... bxc5 {[%clk 0:01:27.3]} 41. Rxc5 {[%clk 0:02:05.1]}
41... Rb8 {[%clk 0:01:25]} 42. Ra5 {[%clk 0:01:58.5]} 42... Rb3+ {[%clk
0:01:21.4]} 43. Ke2 {[%clk 0:01:57]} 43... Rb7 {[%clk 0:01:19.8]} 44. Ke3 {[%clk
0:01:52.9]} 44... f5 {[%clk 0:01:18.2]} 45. f3 {[%clk 0:01:46.5]} 45... f6
{[%clk 0:01:16.9]} 46. f4 {[%clk 0:01:41.5]} 46... h5 {[%clk 0:01:15.5]} 47. Kf2
{[%clk 0:01:22.5]} 47... Rb2+ {[%clk 0:01:13.4]} 48. Ke3 {[%clk 0:01:20.7]}
48... Rb3+ {[%clk 0:01:12.9]} 49. Kf2 {[%clk 0:01:18.1]} 49... Rb7 {[%clk
0:01:10.7]} 50. Ke3 {[%clk 0:01:16.5]} 50... Rc7 {[%clk 0:01:08.6]} 51. Kd3
{[%clk 0:01:11.3]} 51... Kc6 {[%clk 0:01:07.6]} 52. Ra6+ {[%clk 0:01:05.7]}
52... Kd7 {[%clk 0:01:04.4]} 53. d5 {[%clk 0:00:52.4]} 53... exd5 {[%clk
0:00:54.2]} 54. Rxf6 {[%clk 0:00:50.8]} 54... Rb7 {[%clk 0:00:52.7]} 55. Rxf5
{[%clk 0:00:49.2]} 55... Rb3+ {[%clk 0:00:51.3]} 56. Kd4 {[%clk 0:00:48.4]}
56... Rxg3 {[%clk 0:00:49.6]} 57. Rxh5 {[%clk 0:00:46.4]} 57... Rxa3 {[%clk
0:00:48.8]} 58. Rxd5+ {[%clk 0:00:43]} 58... Ke6 {[%clk 0:00:47]} 59. Re5+
{[%clk 0:00:41.2]} 59... Kf6 {[%clk 0:00:45.5]} 60. h5 {[%clk 0:00:38.1]} 60...
Ra4+ {[%clk 0:00:44.6]} 61. Ke3 {[%clk 0:00:36.5]} 61... Ra3+ {[%clk 0:00:43.2]}
62. Kd4 {[%clk 0:00:33.4]} 62... Ra4+ {[%clk 0:00:42.3]} 63. Ke3 {[%clk
0:00:32.2]} 63... Ra3+ {[%clk 0:00:41.2]} 64. Ke4 {[%clk 0:00:31]} 64... Ra4+
{[%clk 0:00:40.2]} 65. Ke3 {[%clk 0:00:30.2]} 1/2-1/2

[Event "Live Chess"]
[Site "Chess.com"]
[Date "2023.05.20"]
[Round "-"]
[White "risinghelios"]
[Black "Tushinskiy"]
[Result "0-1"]
[WhiteElo "1933"]
[BlackElo "2105"]
[TimeControl "300"]
[EndTime "11:30:02 PDT"]
[Termination "Tushinskiy won by resignation"]

1. e4 {[%clk 0:04:59.2]} 1... e5 {[%clk 0:04:58.7]} 2. Nf3 {[%clk 0:04:57.8]}
2... d6 {[%clk 0:04:58.6]} 3. Bc4 {[%clk 0:04:57.4]} 3... Bg4 {[%clk 0:04:58.5]}
4. Nc3 {[%clk 0:04:54.7]} 4... Nf6 {[%clk 0:04:57]} 5. d3 {[%clk 0:04:52]} 5...
Nbd7 {[%clk 0:04:56]} 6. O-O {[%clk 0:04:51.1]} 6... c6 {[%clk 0:04:55.3]} 7.
Bg5 {[%clk 0:04:50.2]} 7... Be7 {[%clk 0:04:52.1]} 8. h3 {[%clk 0:04:49]} 8...
Bh5 {[%clk 0:04:50.8]} 9. Ne2 {[%clk 0:04:47]} 9... O-O {[%clk 0:04:46]} 10. Ng3
{[%clk 0:04:46.3]} 10... Bg6 {[%clk 0:04:44.9]} 11. Nh4 {[%clk 0:04:44.8]} 11...
b5 {[%clk 0:04:42.9]} 12. Nxg6 {[%clk 0:04:43.2]} 12... hxg6 {[%clk 0:04:41.7]}
13. Bb3 {[%clk 0:04:42.8]} 13... a5 {[%clk 0:04:39.7]} 14. c3 {[%clk 0:04:42.5]}
14... Nc5 {[%clk 0:04:38.7]} 15. Bc2 {[%clk 0:04:41.7]} 15... b4 {[%clk
0:04:38]} 16. d4 {[%clk 0:04:40.1]} 16... exd4 {[%clk 0:04:29.2]} 17. cxd4
{[%clk 0:04:39.7]} 17... Ne6 {[%clk 0:04:28.6]} 18. Bxf6 {[%clk 0:04:36.1]}
18... Bxf6 {[%clk 0:04:27.2]} 19. d5 {[%clk 0:04:35.8]} 19... cxd5 {[%clk
0:04:26]} 20. Qxd5 {[%clk 0:04:35.7]} 20... Bxb2 {[%clk 0:04:23.6]} 21. Rab1
{[%clk 0:04:34.7]} 21... Be5 {[%clk 0:04:22.2]} 22. Ne2 {[%clk 0:04:32.7]} 22...
Qf6 {[%clk 0:04:19.4]} 23. Bb3 {[%clk 0:04:26.3]} 23... Kh7 {[%clk 0:04:12.4]}
24. Nc1 {[%clk 0:04:25.3]} 24... Nf4 {[%clk 0:04:10.7]} 25. Qd2 {[%clk
0:04:23.1]} 25... Qg5 {[%clk 0:04:06.1]} 26. f3 {[%clk 0:04:15.9]} 26... Nxh3+
{[%clk 0:04:04]} 27. Kh1 {[%clk 0:04:14.5]} 27... Qxd2 {[%clk 0:04:03.9]} 0-1

[Event "Live Chess"]
[Site "Chess.com"]
[Date "2023.05.20"]
[Round "-"]
[White "seuen"]
[Black "zdanevych"]
[Result "1-0"]
[WhiteElo "1156"]
[BlackElo "1527"]
[TimeControl "300"]
[EndTime "11:30:09 PDT"]
[Termination "seuen won by resignation"]

1. e4 {[%clk 0:04:55.2]} 1... c5 {[%clk 0:04:58.5]} 2. c3 {[%clk 0:04:53]} 2...
e6 {[%clk 0:04:57.8]} 3. d4 {[%clk 0:04:52]} 3... cxd4 {[%clk 0:04:56.6]} 4.
cxd4 {[%clk 0:04:51.9]} 4... d5 {[%clk 0:04:56.1]} 5. e5 {[%clk 0:04:39.1]} 5...
Nc6 {[%clk 0:04:54.8]} 6. Nf3 {[%clk 0:04:37.9]} 6... h6 {[%clk 0:04:49.1]} 7.
Bd3 {[%clk 0:04:37.4]} 7... Nge7 {[%clk 0:04:48.4]} 8. O-O {[%clk 0:04:36.2]}
8... Ng6 {[%clk 0:04:47.6]} 9. Nc3 {[%clk 0:04:16.1]} 9... Be7 {[%clk
0:04:41.7]} 10. Qb3 {[%clk 0:04:04.9]} 10... O-O {[%clk 0:04:19.3]} 11. Qc2
{[%clk 0:03:54.6]} 11... Qe8 {[%clk 0:04:09.2]} 12. Nb5 {[%clk 0:03:44.8]} 12...
a6 {[%clk 0:04:06.1]} 13. Nc7 {[%clk 0:03:43.3]} 13... Qd7 {[%clk 0:04:04.5]}
14. Nxa8 {[%clk 0:03:42.5]} 14... b5 {[%clk 0:04:01]} 15. Nb6 {[%clk 0:03:40]}
15... Qb7 {[%clk 0:03:59.7]} 16. Nxc8 {[%clk 0:03:37.6]} 16... Rxc8 {[%clk
0:03:59.6]} 17. Bxg6 {[%clk 0:03:27.7]} 17... fxg6 {[%clk 0:03:59.5]} 18. Qxg6
{[%clk 0:03:26.4]} 18... Qd7 {[%clk 0:03:51.8]} 19. Bxh6 {[%clk 0:03:25.4]} 1-0

[Event "Live Chess"]
[Site "Chess.com"]
[Date "2023.05.20"]
[Round "-"]
[White "Missedidea"]
[Black "profpirate4"]
[Result "1-0"]
[WhiteElo "1720"]
[BlackElo "1048"]
[TimeControl "300"]
[EndTime "11:30:10 PDT"]
[Termination "Missedidea won by resignation"]

1. d4 {[%clk 0:04:58.3]} 1... f5 {[%clk 0:04:58.9]} 2. e4 {[%clk 0:04:55.9]}
2... fxe4 {[%clk 0:04:57.7]} 3. Nc3 {[%clk 0:04:54.7]} 3... Nf6 {[%clk
0:04:52.7]} 4. Bg5 {[%clk 0:04:52.6]} 4... Nc6 {[%clk 0:04:50.9]} 5. f3 {[%clk
0:04:47.1]} 5... e3 {[%clk 0:04:48.7]} 6. Bxe3 {[%clk 0:04:43.9]} 6... d5 {[%clk
0:04:43.1]} 7. Bd3 {[%clk 0:04:41.3]} 7... e6 {[%clk 0:04:39]} 8. a3 {[%clk
0:04:38.1]} 8... Be7 {[%clk 0:04:36.1]} 9. Qd2 {[%clk 0:04:36]} 9... e5 {[%clk
0:04:32.6]} 10. dxe5 {[%clk 0:04:30.2]} 10... Nxe5 {[%clk 0:04:31.3]} 11. O-O-O
{[%clk 0:04:21.8]} 11... d4 {[%clk 0:04:26]} 12. Bxd4 {[%clk 0:04:19.7]} 12...
Qxd4 {[%clk 0:04:23.5]} 13. Bg6+ {[%clk 0:04:18.4]} 13... Nxg6 {[%clk
0:04:15.9]} 14. Qxd4 {[%clk 0:04:17.3]} 14... Bd7 {[%clk 0:04:15.1]} 15. g4
{[%clk 0:04:13.7]} 15... Rd8 {[%clk 0:04:13.6]} 16. Qxa7 {[%clk 0:04:09.9]}
16... Bc6 {[%clk 0:04:06.1]} 17. h3 {[%clk 0:04:08]} 17... Nf4 {[%clk
0:04:03.7]} 18. Rxd8+ {[%clk 0:03:58.1]} 18... Bxd8 {[%clk 0:04:00.1]} 19. Qe3+
{[%clk 0:03:54.8]} 1-0

[Event "Live Chess"]
[Site "Chess.com"]
[Date "2023.05.20"]
[Round "-"]
[White "Driftboard"]
[Black "Conradical12"]
[Result "0-1"]
[WhiteElo "691"]
[BlackElo "1537"]
[TimeControl "300"]
[EndTime "11:30:19 PDT"]
[Termination "Conradical12 won by checkmate"]

1. e4 {[%clk 0:04:58.8]} 1... e5 {[%clk 0:04:58.9]} 2. Nf3 {[%clk 0:04:57.3]}
2... Nc6 {[%clk 0:04:58.3]} 3. Nc3 {[%clk 0:04:56.4]} 3... Nf6 {[%clk
0:04:57.1]} 4. Bb5 {[%clk 0:04:55.8]} 4... Bb4 {[%clk 0:04:31.4]} 5. Bxc6 {[%clk
0:04:52.9]} 5... Bxc3 {[%clk 0:04:28.1]} 6. dxc3 {[%clk 0:04:50.6]} 6... bxc6
{[%clk 0:04:25]} 7. O-O {[%clk 0:04:49]} 7... O-O {[%clk 0:04:23.4]} 8. Bg5
{[%clk 0:04:46.7]} 8... Ba6 {[%clk 0:04:22.8]} 9. Bxf6 {[%clk 0:04:40.7]} 9...
Qxf6 {[%clk 0:04:22.7]} 10. Re1 {[%clk 0:04:39.2]} 10... Rfe8 {[%clk 0:04:18.4]}
11. h3 {[%clk 0:04:37.6]} 11... d5 {[%clk 0:04:17]} 12. b3 {[%clk 0:04:35.2]}
12... Rad8 {[%clk 0:04:13.2]} 13. Rb1 {[%clk 0:04:27]} 13... dxe4 {[%clk
0:04:11.1]} 14. Nd2 {[%clk 0:04:19.7]} 14... Qf4 {[%clk 0:04:03]} 15. Rxe4
{[%clk 0:04:14.1]} 15... Qxd2 {[%clk 0:03:59.1]} 16. Qxd2 {[%clk 0:04:12.1]}
16... Rxd2 {[%clk 0:03:58.4]} 17. Re3 {[%clk 0:04:09.5]} 17... Rxc2 {[%clk
0:03:57]} 18. c4 {[%clk 0:04:06.3]} 18... Rxa2 {[%clk 0:03:55.9]} 19. Rbe1
{[%clk 0:04:04.2]} 19... f6 {[%clk 0:03:54.2]} 20. f4 {[%clk 0:04:02.6]} 20...
Ra5 {[%clk 0:03:45.3]} 21. fxe5 {[%clk 0:03:58.4]} 21... Raxe5 {[%clk
0:03:43.5]} 22. Rxe5 {[%clk 0:03:55.9]} 22... Rxe5 {[%clk 0:03:43.4]} 23. Rd1
{[%clk 0:03:51.9]} 23... Re3 {[%clk 0:03:37.2]} 24. Rd8+ {[%clk 0:03:49.3]}
24... Kf7 {[%clk 0:03:35.7]} 25. Rd7+ {[%clk 0:03:48.3]} 25... Kg6 {[%clk
0:03:34]} 26. Rxc7 {[%clk 0:03:47.4]} 26... Rxb3 {[%clk 0:03:33.4]} 27. Rxc6
{[%clk 0:03:44.2]} 27... Ra3 {[%clk 0:03:30.1]} 28. c5 {[%clk 0:03:42.7]} 28...
Bb5 {[%clk 0:03:29.5]} 29. Rc7 {[%clk 0:03:39.5]} 29... Rc3 {[%clk 0:03:27.6]}
30. Rxa7 {[%clk 0:03:37.5]} 30... Rxc5 {[%clk 0:03:25.8]} 31. Rb7 {[%clk
0:03:36.4]} 31... Bd3 {[%clk 0:03:24.5]} 32. Rb3 {[%clk 0:03:33.1]} 32... Rc1+
{[%clk 0:03:23.2]} 33. Kh2 {[%clk 0:03:31]} 33... Bf5 {[%clk 0:03:21]} 34. Rf3
{[%clk 0:03:29]} 34... Rc4 {[%clk 0:03:17.4]} 35. g4 {[%clk 0:03:22.1]} 35...
Be4 {[%clk 0:03:15.8]} 36. Rf4 {[%clk 0:03:16.8]} 36... Kg5 {[%clk 0:03:14.5]}
37. Rf1 {[%clk 0:03:10.1]} 37... Rc2+ {[%clk 0:03:13.3]} 38. Kg1 {[%clk
0:03:07.1]} 38... Rg2+ {[%clk 0:03:12.3]} 39. Kh1 {[%clk 0:03:04]} 39... Kh4
{[%clk 0:03:01.9]} 40. Rf4 {[%clk 0:02:52]} 40... Kxh3 {[%clk 0:02:57.3]} 41.
Rxe4 {[%clk 0:02:49]} 41... Ra2 {[%clk 0:02:50.9]} 42. Re3+ {[%clk 0:02:44]}
42... Kxg4 {[%clk 0:02:48.6]} 43. Re4+ {[%clk 0:02:40.3]} 43... Kh3 {[%clk
0:02:47.6]} 44. Re3+ {[%clk 0:02:37.5]} 44... Kh4 {[%clk 0:02:46.7]} 45. Re4+
{[%clk 0:02:36.5]} 45... Kg5 {[%clk 0:02:46]} 46. Rb4 {[%clk 0:02:30.8]} 46...
h5 {[%clk 0:02:44.3]} 47. Kg1 {[%clk 0:02:28.2]} 47... h4 {[%clk 0:02:43.3]} 48.
Kh1 {[%clk 0:02:27.2]} 48... h3 {[%clk 0:02:42.2]} 49. Rb3 {[%clk 0:02:22.3]}
49... Kg4 {[%clk 0:02:40.4]} 50. Rc3 {[%clk 0:02:18.8]} 50... f5 {[%clk
0:02:36.6]} 51. Rd3 {[%clk 0:02:16.9]} 51... f4 {[%clk 0:02:35.9]} 52. Kg1
{[%clk 0:02:12.8]} 52... f3 {[%clk 0:02:33.7]} 53. Rc3 {[%clk 0:02:07.5]} 53...
Kg3 {[%clk 0:02:33.1]} 54. Kf1 {[%clk 0:01:57.4]} 54... Ra1+ {[%clk 0:02:30.6]}
55. Rc1 {[%clk 0:01:54]} 55... Rxc1# {[%clk 0:02:30.5]} 0-1

[Event "Live Chess"]
[Site "Chess.com"]
[Date "2023.05.20"]
[Round "-"]
[White "Duke_of_Bebington"]
[Black "Yehor20132013"]
[Result "1-0"]
[WhiteElo "1573"]
[BlackElo "606"]
[TimeControl "300"]
[EndTime "11:30:19 PDT"]
[Termination "Duke_of_Bebington won - game abandoned"]

1. e4 {[%clk 0:04:59.2]} 1... e5 {[%clk 0:04:57.6]} 2. Nf3 {[%clk 0:04:58.1]}
2... Bc5 {[%clk 0:04:42]} 3. Bc4 {[%clk 0:04:55.2]} 3... d6 {[%clk 0:04:23.3]}
4. d3 {[%clk 0:04:48.8]} 4... Bg4 {[%clk 0:04:17.3]} 5. h3 {[%clk 0:04:46.3]}
5... Bxf3 {[%clk 0:04:16]} 6. Qxf3 {[%clk 0:04:45.3]} 6... Ne7 {[%clk
0:04:11.2]} 7. Qxf7+ {[%clk 0:04:42.5]} 7... Kd7 {[%clk 0:03:55]} 8. Be6+ {[%clk
0:04:39.6]} 8... Kc6 {[%clk 0:03:52.3]} 9. Bd5+ {[%clk 0:04:37.4]} 9... Kd7
{[%clk 0:03:50.2]} 10. Bxb7 {[%clk 0:04:20.5]} 10... Qg8 {[%clk 0:03:43.2]} 11.
Qxg8 {[%clk 0:04:14.9]} 11... Rxg8 {[%clk 0:03:41.5]} 12. Bxa8 {[%clk
0:04:14.5]} 12... Na6 {[%clk 0:03:38.7]} 13. Bd5 {[%clk 0:04:04.4]} 1-0

[Event "Live Chess"]
[Site "Chess.com"]
[Date "2023.05.20"]
[Round "-"]
[White "ViktorTheCoolBoy"]
[Black "dudeasy"]
[Result "1-0"]
[WhiteElo "2543"]
[BlackElo "1159"]
[TimeControl "300"]
[EndTime "11:30:24 PDT"]
[Termination "ViktorTheCoolBoy won by checkmate"]

1. d4 {[%clk 0:04:58.8]} 1... Nf6 {[%clk 0:04:57.2]} 2. c4 {[%clk 0:04:57.4]}
2... e6 {[%clk 0:04:55.4]} 3. g3 {[%clk 0:04:56]} 3... b6 {[%clk 0:04:51.7]} 4.
Bg2 {[%clk 0:04:48.8]} 4... Nc6 {[%clk 0:04:50]} 5. Nf3 {[%clk 0:04:43.7]} 5...
Bb7 {[%clk 0:04:48.9]} 6. O-O {[%clk 0:04:43.1]} 6... Be7 {[%clk 0:04:47.1]} 7.
Nc3 {[%clk 0:04:39.7]} 7... O-O {[%clk 0:04:45.7]} 8. d5 {[%clk 0:04:37.2]} 8...
exd5 {[%clk 0:04:43.7]} 9. cxd5 {[%clk 0:04:36.1]} 9... Nb4 {[%clk 0:04:36.3]}
10. Ne5 {[%clk 0:04:33.4]} 10... d6 {[%clk 0:04:29]} 11. Nc4 {[%clk 0:04:28.2]}
11... Na6 {[%clk 0:04:18.8]} 12. a3 {[%clk 0:04:25.4]} 12... Nc5 {[%clk
0:04:17.4]} 13. b4 {[%clk 0:04:23.2]} 13... Ncd7 {[%clk 0:04:11.8]} 14. Bb2
{[%clk 0:04:22.2]} 14... Re8 {[%clk 0:04:06.9]} 15. e4 {[%clk 0:04:20.1]} 15...
h6 {[%clk 0:04:04.9]} 16. Re1 {[%clk 0:04:18.6]} 16... Ne5 {[%clk 0:03:56.3]}
17. Ne3 {[%clk 0:04:08.7]} 17... Qd7 {[%clk 0:03:46.7]} 18. h3 {[%clk
0:04:05.6]} 18... a5 {[%clk 0:03:41.1]} 19. f4 {[%clk 0:04:00.2]} 19... Ng6
{[%clk 0:03:37.8]} 20. Nf5 {[%clk 0:03:56.4]} 20... axb4 {[%clk 0:03:33.3]} 21.
axb4 {[%clk 0:03:55.6]} 21... Rxa1 {[%clk 0:03:29.4]} 22. Bxa1 {[%clk
0:03:55.5]} 22... Ra8 {[%clk 0:03:26.8]} 23. Qd2 {[%clk 0:03:45.4]} 23... Nh5
{[%clk 0:03:15.6]} 24. Bf3 {[%clk 0:03:40]} 24... Nf6 {[%clk 0:03:09.4]} 25. g4
{[%clk 0:03:35.2]} 25... c6 {[%clk 0:02:51.9]} 26. dxc6 {[%clk 0:03:19.2]} 26...
Bxc6 {[%clk 0:02:50]} 27. h4 {[%clk 0:03:06.7]} 27... Qc7 {[%clk 0:02:33.4]} 28.
h5 {[%clk 0:03:02.9]} 28... Nf8 {[%clk 0:02:30.7]} 29. g5 {[%clk 0:02:51.6]}
29... hxg5 {[%clk 0:02:28.5]} 30. fxg5 {[%clk 0:02:50.4]} 30... N6h7 {[%clk
0:02:26.2]} 31. g6 {[%clk 0:02:42]} 31... fxg6 {[%clk 0:02:23.9]} 32. Nd5 {[%clk
0:02:41.3]} 32... Bxd5 {[%clk 0:02:21.9]} 33. Qxd5+ {[%clk 0:02:40.8]} 33... Kh8
{[%clk 0:02:18.1]} 34. Bxg7# {[%clk 0:02:36.7]} 1-0

[Event "Live Chess"]
[Site "Chess.com"]
[Date "2023.05.20"]
[Round "-"]
[White "Pandreq"]
[Black "CocheseUK"]
[Result "1-0"]
[WhiteElo "1271"]
[BlackElo "1076"]
[TimeControl "300"]
[EndTime "11:30:27 PDT"]
[Termination "Pandreq won by checkmate"]

1. d4 {[%clk 0:04:55.1]} 1... d5 {[%clk 0:04:57.1]} 2. c4 {[%clk 0:04:54.3]}
2... dxc4 {[%clk 0:04:54.1]} 3. e4 {[%clk 0:04:52.5]} 3... e6 {[%clk 0:04:49.3]}
4. Bxc4 {[%clk 0:04:51]} 4... Bb4+ {[%clk 0:04:44.4]} 5. Nc3 {[%clk 0:04:49.6]}
5... Nf6 {[%clk 0:04:38.7]} 6. e5 {[%clk 0:04:47.1]} 6... Nfd7 {[%clk
0:04:35.3]} 7. Bd2 {[%clk 0:04:44.6]} 7... Nb6 {[%clk 0:04:33]} 8. b3 {[%clk
0:04:41.1]} 8... Nc6 {[%clk 0:04:29.2]} 9. Nb5 {[%clk 0:04:27.5]} 9... Bxd2+
{[%clk 0:04:23]} 10. Qxd2 {[%clk 0:04:24.6]} 10... a6 {[%clk 0:04:14.3]} 11. Nc3
{[%clk 0:04:01.2]} 11... Qxd4 {[%clk 0:04:06.3]} 12. O-O-O {[%clk 0:03:50.4]}
12... Qxd2+ {[%clk 0:03:55.7]} 13. Rxd2 {[%clk 0:03:45.7]} 13... Nxc4 {[%clk
0:03:50.6]} 14. bxc4 {[%clk 0:03:43.9]} 14... Nxe5 {[%clk 0:03:49.3]} 15. c5
{[%clk 0:03:38.1]} 15... O-O {[%clk 0:03:44.9]} 16. Re2 {[%clk 0:03:33.6]} 16...
Nd3+ {[%clk 0:03:31.5]} 17. Kb1 {[%clk 0:03:28.1]} 17... Nxc5 {[%clk 0:03:28.2]}
18. Rc2 {[%clk 0:03:24.6]} 18... b6 {[%clk 0:03:01.5]} 19. Nge2 {[%clk
0:03:20.7]} 19... Rd8 {[%clk 0:02:59.1]} 20. Rd1 {[%clk 0:03:18.2]} 20... Rxd1+
{[%clk 0:02:52.9]} 21. Nxd1 {[%clk 0:03:18.1]} 21... Nd3 {[%clk 0:02:39.5]} 22.
Rd2 {[%clk 0:03:15]} 22... Nc5 {[%clk 0:02:26.4]} 23. Rd8# {[%clk 0:03:13.6]}
1-0

[Event "Live Chess"]
[Site "Chess.com"]
[Date "2023.05.20"]
[Round "-"]
[White "apl_trainer"]
[Black "CheckThis4"]
[Result "0-1"]
[WhiteElo "1622"]
[BlackElo "2552"]
[TimeControl "300"]
[EndTime "11:30:28 PDT"]
[Termination "CheckThis4 won by resignation"]

1. d4 {[%clk 0:04:57.3]} 1... Nf6 {[%clk 0:04:56.7]} 2. c4 {[%clk 0:04:56.2]}
2... g6 {[%clk 0:04:55.7]} 3. Nc3 {[%clk 0:04:54.9]} 3... d5 {[%clk 0:04:54.8]}
4. cxd5 {[%clk 0:04:52.8]} 4... Nxd5 {[%clk 0:04:53.8]} 5. e4 {[%clk 0:04:51.7]}
5... Nxc3 {[%clk 0:04:52.7]} 6. bxc3 {[%clk 0:04:50.7]} 6... Bg7 {[%clk
0:04:52.2]} 7. Qa4+ {[%clk 0:04:47.5]} 7... Nd7 {[%clk 0:04:38.2]} 8. Nf3 {[%clk
0:04:44.3]} 8... O-O {[%clk 0:04:35.2]} 9. h4 {[%clk 0:04:42.9]} 9... h5 {[%clk
0:04:31.8]} 10. e5 {[%clk 0:04:35.6]} 10... c5 {[%clk 0:04:27.4]} 11. e6 {[%clk
0:04:31.6]} 11... Nb6 {[%clk 0:04:15.4]} 12. exf7+ {[%clk 0:04:26.5]} 12... Rxf7
{[%clk 0:04:15.3]} 13. Qb3 {[%clk 0:04:19.8]} 13... c4 {[%clk 0:03:58]} 14. Bxc4
{[%clk 0:04:09.5]} 14... Nxc4 {[%clk 0:03:56.7]} 15. Qxc4 {[%clk 0:04:08.5]}
15... e6 {[%clk 0:03:49]} 16. Ng5 {[%clk 0:04:04.2]} 16... Rc7 {[%clk
0:03:44.4]} 17. Qd3 {[%clk 0:04:00.9]} 17... Qe8 {[%clk 0:03:38]} 18. Bf4 {[%clk
0:03:56.9]} 18... Re7 {[%clk 0:03:30.4]} 19. O-O {[%clk 0:03:53.5]} 19... b5
{[%clk 0:03:27.1]} 20. a4 {[%clk 0:03:44.7]} 20... bxa4 {[%clk 0:03:25]} 21. c4
{[%clk 0:03:41]} 21... Bb7 {[%clk 0:03:22.6]} 22. Rfe1 {[%clk 0:03:34.3]} 22...
Rd8 {[%clk 0:03:20.5]} 23. d5 {[%clk 0:03:32.9]} 23... Bxa1 {[%clk 0:03:11.1]}
24. Rxa1 {[%clk 0:03:14.9]} 24... exd5 {[%clk 0:03:08]} 25. c5 {[%clk
0:03:07.3]} 25... d4 {[%clk 0:02:42]} 26. Bd6 {[%clk 0:03:01.2]} 26... Re1+
{[%clk 0:01:58]} 27. Rxe1 {[%clk 0:02:58]} 27... Qxe1+ {[%clk 0:01:57.9]} 28.
Kh2 {[%clk 0:02:57.1]} 28... Rxd6 {[%clk 0:01:57.5]} 29. cxd6 {[%clk 0:02:47.4]}
29... Qe5+ {[%clk 0:01:56.3]} 30. Kg1 {[%clk 0:02:32.9]} 30... Qxd6 {[%clk
0:01:42]} 31. Qb5 {[%clk 0:02:31.2]} 31... Qc6 {[%clk 0:01:31.7]} 0-1